bitfinex/quotes_ETHUSD_20241116
["timestamp","ask_amount","ask_price","bid_price","bid_amount"]
[1731761179019,3.14852,3176.1,3175.5,0.3]
[1731761179319,3.14767,3177.0,3176.0,3.14861]
[1731761179320,3.14807,3176.6,3176.0,3.14861]
[1731761179489,3.14702,3177.6,3176.1,0.06296575]
[1731761179674,3.14811,3176.6,3175.9,3.0]
[1731761180173,0.62961248,3177.2,3175.8,3.0]
[1731761180382,3.14817,3176.5,3175.9,0.31488]
[1731761180625,3.14833,3176.3,3175.9,0.31488]
[1731761180825,3.14817,3176.5,3175.9,0.31488]
[1731761180979,3.14817,3176.5,3175.9,0.37784654]
[1731761181175,3.14817,3176.5,3175.9,0.31488]
[1731761181403,3.14821,3176.4,3176.0,0.646367]
[1731761181617,3.14831,3176.4,3175.8,3.0]
[1731761181793,0.62961248,3177.2,3176.0,3.0]
[1731761181994,6.51312263,3177.9,3175.8,3.0]
[1731761181995,3.14799,3176.7,3175.8,3.0]
[1731761182286,6.51312263,3177.9,3175.8,3.0]
[1731761182287,3.01,3177.7,3175.9,0.66539263]
[1731761182631,3.01,3177.7,3176.2,3.0]
[1731761182632,3.14786,3176.8,3176.2,3.0]
[1731761182783,3.14824,3176.4,3175.9,3.66539263]
[1731761182989,3.14824,3176.4,3175.6,3.0]
[1731761183424,3.14824,3176.4,3175.5,3.28024084]
[1731761183425,0.62442573,3177.3,3175.8,3.0]
[1731761183637,0.62442573,3177.3,3176.3,3.14831]
[1731761183638,3.14763,3177.0,3176.3,3.14831]
[1731761183802,3.14763,3177.0,3176.3,3.463141]
[1731761184324,3.14779,3176.9,3176.3,0.314831]
[1731761184623,3.14783,3176.8,3176.3,0.314831]
[1731761184824,3.14763,3177.0,3176.3,3.463101]
[1731761185393,3.14763,3177.0,3176.4,0.3463101]
[1731761185789,3.14793,3176.7,3176.4,0.3463101]
[1731761185990,3.14793,3176.7,3176.2,3.0]
[1731761186415,3.14773,3176.9,3176.2,3.1484]
[1731761187329,3.14773,3176.9,3176.3,3.14829]
[1731761187762,3.14753,3177.1,3176.5,3.14811]
[1731761187901,0.61448031,3177.6,3176.5,3.77775]
[1731761188241,3.51319263,3177.9,3176.6,3.14801]
[1731761188242,3.14739,3177.3,3176.6,3.14801]
[1731761188449,3.14746,3177.2,3176.5,3.0]
[1731761188613,3.14746,3177.2,3176.5,3.929644]
[1731761189342,3.14756,3177.1,3176.5,3.929644]
[1731761189547,3.14683,3177.8,3176.6,35.0]
[1731761189839,3.1475,3177.2,3176.6,35.0]
[1731761190052,3.1475,3177.2,3176.6,38.14099947]
[1731761190239,3.1475,3177.2,3176.6,3.14099947]
[1731761190402,3.1475,3177.2,3176.5,7.077754]
[1731761190724,3.14755,3177.1,3176.5,42.077754]
[1731761190897,3.1475,3177.2,3176.5,7.077754]
[1731761191104,3.1475,3177.2,3176.6,0.7077754]
[1731761192124,3.14753,3177.1,3176.6,0.7077754]
[1731761192763,0.36639263,3177.9,3176.6,0.7077754]
[1731761192764,3.01228109,3178.3,3176.6,0.7077754]
[1731761193074,3.01228109,3178.3,3176.6,3.0]
[1731761193075,3.44865811,3178.2,3176.6,3.0]
[1731761193218,3.14761,3177.1,3176.5,0.929644]
[1731761193422,3.14734,3177.3,3176.3,3.1483]
[1731761193622,3.14759,3177.1,3176.2,3.0]
[1731761193853,3.14763,3177.0,3176.5,3.0]
[1731761194019,3.14771,3177.0,3176.3,3.0]
[1731761194240,3.14773,3176.9,3176.3,3.0]
[1731761194450,3.14759,3177.1,3176.4,3.36012281]
[1731761194760,3.14794,3176.7,3176.4,0.36012281]
[1731761194960,3.14774,3176.9,3176.2,0.60122811]
[1731761195183,3.14792,3176.7,3176.2,0.60122811]
[1731761195389,3.14774,3176.9,3176.2,0.60122811]
[1731761195530,3.14797,3176.7,3176.2,3.60122811]
[1731761195868,3.14783,3176.8,3176.3,0.67497281]
[1731761196082,3.14794,3176.7,3176.3,0.67497281]
[1731761196719,0.55,3177.2,3175.0,0.36539263]
[1731761196960,0.55,3177.2,3175.4,3.14913]
[1731761196961,3.14853,3176.1,3175.4,3.14913]
[1731761197165,3.14851,3176.2,3175.4,3.14913]
[1731761197375,3.14851,3176.2,3175.5,35.0]
[1731761197663,3.14851,3176.2,3175.0,3.01228109]
[1731761197664,0.63897601,3176.7,3175.6,3.14899]
[1731761197848,3.0,3177.7,3176.0,3.1486]
[1731761197849,3.14789,3176.8,3176.0,3.1486]
[1731761198167,3.14788,3176.8,3176.1,3.1485]
[1731761198375,3.14788,3176.8,3176.2,3.14838]
[1731761198577,3.14772,3176.9,3176.2,3.21134247]
[1731761198729,3.14772,3176.9,3176.2,3.14838]
[1731761198929,3.14754,3177.1,3176.4,3.14819]
[1731761199172,3.14715,3177.5,3176.5,3.0]
[1731761199384,1.258195,3178.5,3177.7,3.14685]
[1731761199385,3.14621,3178.5,3177.7,3.14685]
[1731761199669,3.14621,3178.5,3177.2,3.14742]
[1731761199670,0.1459172,3178.6,3177.2,3.14742]
[1731761199671,3.14633,3178.4,3177.5,3.14712]
[1731761199823,3.14633,3178.4,3177.3,0.06293661]
[1731761199824,3.2919672,3178.6,3177.7,2.99505]
[1731761200020,0.1459172,3178.6,3177.7,3.14691]
[1731761200226,0.1459172,3178.6,3177.9,3.14664]
[1731761200464,0.1459172,3178.6,3178.0,3.0]
[1731761200674,3.2919572,3178.6,3178.0,3.0]
[1731761201027,0.1459172,3178.6,3178.0,3.0]
[1731761201229,0.1459172,3178.6,3178.2,3.1464]
[1731761201542,0.1459172,3178.6,3178.3,0.31464]
[1731761202590,0.1459172,3178.6,3178.0,3.0]
[1731761203164,0.1459172,3178.6,3178.0,3.1466]
[1731761203571,0.1459172,3178.6,3178.1,3.0]
[1731761203960,0.1459172,3178.6,3178.0,3.0]
[1731761204135,3.14624,3178.4,3177.8,0.32098407]
[1731761204331,3.14634,3178.3,3177.7,3.0]
[1731761204645,3.14634,3178.3,3177.1,3.14743]
[1731761204646,0.1459172,3178.6,3177.1,3.14743]
[1731761204833,3.14613,3178.5,3177.0,3.01228109]
[1731761205169,0.32920472,3178.4,3177.2,3.14741]
[1731761205369,3.14645,3178.2,3177.2,3.14741]
[1731761205572,3.14671,3178.0,3177.1,3.76342911]
[1731761205945,3.14674,3177.9,3177.2,3.14742]
[1731761206272,3.14652,3178.2,3177.4,3.14714]
[1731761206478,3.14654,3178.1,3177.3,3.06293776]
[1731761206844,3.14635,3178.3,3177.6,3.147]
[1731761207070,3.2919572,3178.6,3177.3,3.01228109]
[1731761207071,3.14615,3178.5,3177.7,3.14689]
[1731761207486,3.14624,3178.4,3177.6,3.01228109]
[1731761207639,0.64381072,3178.5,3177.4,3.0]
[1731761207979,3.1465,3178.2,3177.4,3.0]
[1731761208547,3.14641,3178.3,3177.4,3.0]
[1731761208746,0.1459172,3178.6,3177.4,3.0]
[1731761208747,3.14653,3178.2,3177.4,3.0]
[1731761209063,3.14653,3178.2,3177.1,6.14751]
[1731761209064,3.14682,3177.9,3177.1,6.14751]
[1731761209261,3.14686,3177.8,3177.1,3.0]
[1731761209467,0.314653,3178.2,3177.1,3.0]
[1731761209468,3.14653,3178.1,3177.3,3.0]
[1731761209673,3.14678,3177.9,3176.9,6.1477]
[1731761210122,3.14691,3177.8,3177.0,3.14761]
[1731761210286,3.14691,3177.8,3177.1,3.0]
[1731761210510,3.461601,3177.8,3177.2,3.0]
[1731761210971,3.461601,3177.8,3177.3,0.55]
[1731761211176,0.5749478,3178.0,3177.4,3.0]
[1731761211375,0.5749478,3178.0,3177.5,3.55]
[1731761211541,0.5749478,3178.0,3177.9,0.55]
[1731761211745,0.5749478,3178.0,3177.9,3.75966259]
[1731761211989,0.5749478,3178.0,3177.9,6.69673]
[1731761212289,0.4749478,3178.0,3177.9,7.98232211]
[1731761212871,0.4749478,3178.0,3177.9,42.98232211]
[1731761215858,0.4749478,3178.0,3177.9,7.98232211]
[1731761217067,0.4749478,3178.0,3177.9,1.83559211]
[1731761217394,0.4749478,3178.0,3177.9,3.69673]
[1731761217626,0.4749478,3178.0,3177.9,6.69673]
[1731761218100,0.4749478,3178.0,3177.9,3.55]
[1731761218303,0.4749478,3178.0,3177.9,0.55]
[1731761218464,0.4749478,3178.0,3177.8,0.55]
[1731761218663,0.4749478,3178.0,3177.5,3.0]
[1731761219296,0.4749478,3178.0,3177.5,3.14704]
[1731761219467,3.6216478,3178.0,3177.3,3.1473]
[1731761219667,3.6216478,3178.0,3177.2,3.01228109]
[1731761219869,3.6216478,3178.0,3177.3,0.55]
[1731761220115,3.6216478,3178.0,3177.3,6.69724]
[1731761220312,0.4749478,3178.0,3177.3,3.55]
[1731761220480,0.83709758,3178.0,3177.6,0.55]
[1731761220690,0.4749478,3178.0,3177.6,3.69701]
[1731761221070,0.4749478,3178.0,3177.5,0.55]
[1731761221528,0.4749478,3178.0,3177.3,0.55]
[1731761221688,0.4749478,3178.0,3177.6,0.55]
[1731761222397,0.4749478,3178.0,3176.8,3.14776]
[1731761222585,3.14734,3177.3,3176.5,0.63573926]
[1731761222788,0.4749478,3178.0,3176.3,3.463078]
[1731761222789,3.14763,3177.0,3176.3,3.463078]
[1731761223114,3.14745,3177.2,3176.4,0.64753591]
[1731761223422,3.15673,3177.9,3176.4,0.64753591]
[1731761223423,3.14693,3177.7,3176.4,0.64753591]
[1731761223584,0.4749478,3178.0,3176.0,0.06296172]
[1731761223585,3.14741,3177.3,3176.0,0.06296172]
[1731761223789,3.14741,3177.3,3176.6,3.14799]
[1731761223986,3.14741,3177.3,3176.6,3.14796]
[1731761224219,3.14717,3177.5,3176.7,3.1479]
[1731761224420,3.14704,3177.6,3176.9,3.14765]
[1731761224626,0.4749478,3178.0,3177.4,3.14722]
[1731761224930,0.4749478,3178.0,3177.5,0.55]
[1731761225217,0.4749478,3178.0,3177.5,3.69711]
[1731761225361,0.4749478,3178.0,3177.6,3.14699]
[1731761225569,0.4749478,3178.0,3177.7,3.14692]
[1731761225730,0.4749478,3178.0,3177.9,0.55]
[1731761226368,0.4749478,3178.0,3177.7,3.55]
[1731761226663,0.4749478,3178.0,3177.6,0.55]
[1731761227022,0.4749478,3178.0,3177.9,0.55]
[1731761227426,0.4749478,3178.0,3177.7,3.69691]
[1731761227667,0.4749478,3178.0,3177.8,3.0]
[1731761227881,0.4749478,3178.0,3177.9,0.55]
[1731761228229,0.4749478,3178.0,3177.9,3.69673]
[1731761228732,1.5,3178.5,3178.0,0.55]
[1731761229455,1.5,3178.5,3178.0,3.14662]
[1731761230639,1.5,3178.5,3178.0,0.314662]
[1731761230836,1.5,3178.5,3177.9,3.14673]
[1731761230837,4.64617,3178.5,3178.2,0.55]
[1731761231281,4.64617,3178.5,3177.9,0.55]
[1731761231745,1.5,3178.5,3177.9,3.69671]
[1731761232889,1.5,3178.5,3178.1,0.55]
[1731761233356,4.64615,3178.5,3177.8,3.69675]
[1731761233553,1.5,3178.5,3177.7,3.3578584]
[1731761233856,3.14623,3178.4,3177.5,3.0]
[1731761234163,1.5,3178.5,3177.6,3.0]
[1731761234363,1.5,3178.5,3177.7,3.0]
[1731761234543,1.5,3178.5,3178.0,3.14661]
[1731761234736,1.5,3178.5,3177.5,3.0]
[1731761234984,1.5,3178.5,3177.6,0.60122811]
[1731761235145,1.5,3178.5,3177.6,0.55]
[1731761235345,1.5,3178.5,3177.0,3.01228109]
[1731761235346,3.14654,3178.1,3177.4,0.55]
[1731761236142,3.14678,3177.9,3177.4,0.55]
[1731761236346,3.14654,3178.1,3177.6,0.55]
[1731761236558,3.14663,3178.0,3177.3,3.55]
[1731761236897,0.62677488,3177.8,3177.1,3.14749]
[1731761237097,0.62677488,3177.8,3176.6,3.14792]
[1731761237098,3.1473,3177.4,3176.6,3.14792]
[1731761237605,3.14753,3177.1,3176.5,3.14809]
[1731761237899,3.14725,3177.4,3176.7,3.14784]
[1731761238487,3.14712,3177.6,3177.0,3.1476]
[1731761239170,3.14665,3178.0,3177.3,3.0]
[1731761239373,3.61310983,3178.4,3177.4,0.55]
[1731761239623,0.46681983,3178.4,3177.6,0.55]
[1731761239898,0.46681983,3178.4,3177.8,0.55]
[1731761239899,3.14625,3178.4,3177.8,0.55]
[1731761240305,3.14634,3178.3,3177.8,0.55]
[1731761240485,4.6462,3178.5,3177.8,3.14681]
[1731761240685,4.6462,3178.5,3177.9,0.55]
[1731761240873,3.14626,3178.4,3177.9,0.55]
[1731761241865,3.14634,3178.3,3177.6,3.69696]
[1731761242073,3.14634,3178.3,3177.6,1.234407]
[1731761242290,3.14659,3178.1,3177.4,6.69721]
[1731761242462,3.14659,3178.1,3177.4,3.69721]
[1731761242967,3.14663,3178.0,3177.6,0.55]
[1731761243162,3.14701,3177.7,3177.4,0.55]
[1731761243511,3.14718,3177.5,3176.7,3.14782]
[1731761243820,3.14718,3177.5,3176.9,3.14771]
[1731761244241,3.14649,3178.2,3176.5,0.33269811]
[1731761244242,0.01,3178.0,3176.5,0.33269811]
[1731761244373,0.01,3178.0,3176.1,0.13647255]
[1731761244374,3.14771,3177.0,3176.2,3.14841]
[1731761244580,3.14771,3177.0,3176.4,3.14821]
[1731761244987,3.01228109,3177.9,3176.1,0.13647255]
[1731761244988,3.14701,3177.7,3176.6,3.01228109]
[1731761245201,0.22865925,3178.4,3177.2,3.14739]
[1731761245517,3.14671,3178.0,3177.3,3.14726]
[1731761245823,3.14653,3178.2,3177.5,3.14712]
[1731761245980,3.14654,3178.1,3177.6,0.55]
[1731761246478,3.14654,3178.1,3177.4,0.55]
[1731761246682,3.14654,3178.1,3177.4,3.14721]
[1731761247019,3.14672,3178.0,3177.5,0.55]
[1731761247316,3.14673,3177.9,3177.3,3.69732]
[1731761247526,3.14673,3177.9,3177.3,4.681795]
[1731761247720,0.17286593,3178.3,3177.3,4.534475]
[1731761247897,3.14694,3177.7,3177.3,0.55]
[1731761248207,3.14671,3178.0,3177.4,0.55]
[1731761248389,3.14644,3178.2,3177.4,0.974728]
[1731761248582,3.14655,3178.1,3177.5,3.1471]
[1731761248784,3.14664,3178.0,3177.4,0.55]
[1731761249011,0.629308,3178.0,3176.9,3.0]
[1731761249179,0.01,3178.0,3176.9,3.0]
[1731761249383,6.15861109,3178.3,3176.2,3.14839]
[1731761249384,3.14773,3176.9,3176.2,3.14839]
[1731761249695,3.14773,3176.9,3176.1,3.14848]
[1731761249696,3.14702,3177.6,3176.1,3.14848]
[1731761249697,3.1479,3176.8,3176.1,3.14848]
[1731761250315,3.1479,3176.8,3175.9,3.1487]
[1731761250316,3.1479,3176.8,3176.2,3.14839]
[1731761250889,3.14799,3176.7,3175.9,3.14865]
[1731761251092,3.01228109,3177.3,3176.1,3.14844]
[1731761251093,3.14778,3176.9,3176.1,3.14844]
[1731761251325,3.14778,3176.9,3176.2,0.55]
[1731761251838,3.14765,3177.0,3175.1,1.97240298]
[1731761251839,3.01228109,3177.0,3175.1,1.97240298]
[1731761251986,3.14863,3176.0,3175.3,3.14923]
[1731761252327,3.14863,3176.0,3175.2,0.52325516]
[1731761252328,3.14847,3176.2,3175.4,3.14919]
[1731761252484,3.1484,3176.3,3175.7,3.14891]
[1731761253018,3.14833,3176.3,3175.7,3.1489]
[1731761253179,3.14833,3176.3,3175.8,0.31489]
[1731761253376,3.14823,3176.4,3175.9,0.55]
[1731761253621,3.14823,3176.4,3175.8,3.1488]
[1731761253788,3.14794,3176.7,3175.9,3.6987]
[1731761253982,3.14813,3176.5,3175.9,3.6987]
[1731761254181,3.14813,3176.5,3175.6,3.14899]
[1731761254182,3.01228109,3177.0,3175.8,0.55]
[1731761254384,3.14823,3176.4,3175.8,0.55]
[1731761255398,0.62977212,3176.8,3175.8,0.55]
[1731761255399,0.62977212,3176.8,3176.7,3.14792]
[1731761255612,3.14723,3177.4,3176.7,0.55]
[1731761256020,3.14723,3177.4,3176.7,3.6979]
[1731761256522,3.32895109,3177.9,3176.5,3.14808]
[1731761256523,0.61681048,3177.7,3176.6,3.55]
[1731761256820,3.1473,3177.4,3176.6,6.69799]
[1731761257221,3.1473,3177.4,3176.7,3.14791]
[1731761257413,3.1473,3177.4,3176.8,0.55]
[1731761258024,3.1473,3177.4,3176.7,0.55]
[1731761258388,3.1473,3177.4,3176.7,3.69783]
[1731761258584,3.14702,3177.6,3176.9,3.14766]
[1731761258785,0.37638305,3177.5,3177.0,0.55]
[1731761259035,3.14714,3177.5,3177.0,0.55]
[1731761259398,3.14728,3177.4,3177.0,0.55]
[1731761259603,0.61681048,3177.7,3176.8,3.55]
[1731761259604,3.14753,3177.1,3176.8,3.55]
[1731761259837,3.14731,3177.4,3176.7,0.55]
[1731761260037,3.462041,3177.4,3176.7,3.55]
[1731761260743,0.23865925,3178.4,3176.3,3.14831]
[1731761260744,3.1465,3178.2,3177.6,0.55]
[1731761262045,3.14653,3178.1,3177.5,0.55]
[1731761262201,3.14665,3178.0,3177.5,0.55]
[1731761262548,0.63119411,3177.9,3177.5,0.55]
[1731761262922,0.63119411,3177.9,3176.5,0.14102509]
[1731761262923,3.77792411,3177.9,3177.3,3.0]
[1731761263071,3.14673,3177.9,3177.4,0.55]
[1731761263236,0.44072391,3177.8,3177.2,3.55]
[1731761263731,0.44072391,3177.8,3177.1,3.14744]
[1731761263732,3.14655,3178.1,3177.4,3.55]
[1731761263935,3.14655,3178.1,3177.4,6.69719]
[1731761264733,3.14657,3178.1,3177.5,3.14705]
[1731761264938,3.76476794,3178.3,3177.8,0.55]
[1731761265662,0.61836794,3178.3,3177.6,0.55]
[1731761265846,3.14653,3178.1,3177.6,0.55]
[1731761266249,3.14635,3178.3,3177.6,3.69697]
[1731761266877,0.16459172,3178.4,3177.6,3.69697]
[1731761266878,0.61861961,3178.4,3177.6,0.669697]
[1731761267044,1.5,3178.5,3177.7,3.55]
[1731761267246,3.14641,3178.3,3177.7,0.55]
[1731761267980,3.1466,3178.1,3177.6,0.55]
[1731761269401,0.16459172,3178.4,3177.8,0.55]
[1731761269680,3.31082172,3178.4,3177.8,0.55]
[1731761270084,0.16459172,3178.4,3177.9,0.55]
[1731761270289,1.5,3178.5,3178.1,0.55]
[1731761270450,1.5,3178.5,3178.1,3.69651]
[1731761270773,1.5,3178.5,3178.0,0.55]
[1731761271085,3.14635,3178.3,3177.4,0.55]
[1731761271456,3.14635,3178.3,3177.4,3.55]
[1731761271457,0.464635,3178.3,3177.4,3.55]
[1731761271653,1.5,3178.5,3177.4,3.55]
[1731761271654,3.14662,3178.1,3177.4,3.55]
[1731761271973,3.14673,3178.0,3177.4,3.0]
[1731761272176,3.14686,3177.8,3177.2,3.0]
[1731761272396,3.14686,3177.8,3177.2,6.462152]
[1731761272575,5.17010189,3178.5,3176.9,3.14771]
[1731761272896,3.14724,3177.4,3176.5,3.14808]
[1731761273035,3.14724,3177.4,3176.5,3.462888]
[1731761273242,3.14743,3177.2,3176.5,3.462888]
[1731761273635,3.14743,3177.2,3175.7,3.96480189]
[1731761273636,3.14773,3176.9,3175.7,3.96480189]
[1731761273835,3.14773,3176.9,3176.0,3.14854]
[1731761273836,3.14783,3176.8,3176.0,3.14854]
[1731761274040,3.14792,3176.7,3176.0,3.14854]
[1731761274278,3.14792,3176.7,3175.8,3.14881]
[1731761274279,3.14792,3176.7,3176.1,3.463354]
[1731761274447,3.14742,3177.3,3175.7,3.14891]
[1731761274654,3.14784,3176.8,3176.1,3.14849]
[1731761274881,3.14808,3176.6,3176.0,3.14854]
[1731761275375,3.14769,3177.0,3176.4,3.14818]
[1731761275537,3.14743,3177.2,3176.6,3.14797]
[1731761275745,3.78998986,3177.8,3176.4,3.14815]
[1731761276088,3.14749,3177.2,3176.5,0.629637]
[1731761276241,3.14749,3177.2,3176.5,3.777737]
[1731761276441,3.14749,3177.2,3176.5,0.629637]
[1731761276768,3.14749,3177.2,3176.6,0.55]
[1731761276972,3.14756,3177.1,3176.6,0.55]
[1731761277290,3.14765,3177.0,3176.5,0.55]
[1731761277578,3.14783,3176.8,3176.4,0.55]
[1731761278089,0.37899899,3177.7,3176.2,3.55]
[1731761278381,3.14769,3177.0,3176.4,0.55]
[1731761278881,3.14779,3176.9,3176.4,0.55]
[1731761279177,3.14763,3177.0,3176.5,0.55]
[1731761279551,3.14752,3177.1,3176.2,3.69837]
[1731761279883,3.14733,3177.3,3176.7,0.55]
[1731761280380,3.14758,3177.1,3176.5,3.69811]
[1731761280582,3.14758,3177.1,3176.5,0.55]
[1731761280755,3.14733,3177.3,3176.7,0.55]
[1731761281360,3.14738,3177.3,3176.7,0.55]
[1731761282373,3.14714,3177.5,3176.7,3.69789]
[1731761282576,3.14714,3177.5,3176.5,3.69806]
[1731761282892,3.14742,3177.2,3176.7,0.55]
[1731761283050,3.14764,3177.0,3176.4,0.55]
[1731761283576,3.14742,3177.2,3176.5,3.14811]
[1731761283746,0.64310986,3177.8,3176.7,0.55]
[1731761284092,3.14732,3177.3,3176.7,0.55]
[1731761284583,3.14732,3177.4,3176.7,0.55]
[1731761284753,0.314732,3177.4,3176.5,0.55]
[1731761284948,3.14751,3177.2,3176.5,3.69811]
[1731761285378,3.14753,3177.1,3176.5,0.55]
[1731761285612,3.14724,3177.4,3176.5,0.55]
[1731761285921,3.14724,3177.4,3176.5,3.69805]
[1731761286134,3.14759,3177.1,3176.5,0.55]
[1731761286281,3.14759,3177.1,3176.1,3.14848]
[1731761286282,3.14788,3176.8,3176.2,3.0]
[1731761286488,3.14804,3176.6,3176.0,3.0]
[1731761286909,3.14764,3177.0,3176.1,3.14851]
[1731761287125,3.14744,3177.2,3176.3,3.14823]
[1731761287302,3.14744,3177.2,3176.2,3.06296558]
[1731761287303,0.314744,3177.1,3176.6,3.14798]
[1731761287497,3.78996986,3177.8,3176.7,3.1479]
[1731761287712,3.14686,3177.8,3177.2,3.14738]
[1731761287897,3.14686,3177.8,3177.3,0.55]
[1731761288088,3.14686,3177.8,3177.3,0.54915843]
[1731761288287,1.5,3178.5,3177.3,0.91881227]
[1731761288625,1.5,3178.5,3177.5,3.14708]
[1731761288626,3.1465,3178.2,3177.5,3.14708]
[1731761289252,3.14656,3178.1,3177.5,3.14708]
[1731761289792,3.14656,3178.1,3177.3,4.06611227]
[1731761289793,3.14668,3178.0,3177.3,3.69645843]
[1731761290286,3.14674,3177.9,3177.3,3.69645843]
[1731761290899,4.64616,3178.5,3177.2,0.55]
[1731761291108,3.14627,3178.4,3177.7,3.14692]
[1731761291306,4.64616,3178.5,3177.7,3.14692]
[1731761291307,3.14633,3178.3,3177.8,0.55]
[1731761291505,4.64616,3178.5,3177.8,0.55]
[1731761291506,0.47920772,3178.4,3177.8,0.55]
[1731761291710,0.47920772,3178.4,3177.5,3.14711]
[1731761291711,3.14644,3178.2,3177.6,0.55]
[1731761292501,3.14644,3178.2,3177.6,3.14702]
[1731761292802,3.14644,3178.2,3177.7,0.55]
[1731761293363,3.62544772,3178.4,3177.5,0.55]
[1731761293364,3.14634,3178.3,3177.5,0.55]
[1731761293518,3.14642,3178.3,3177.6,3.14695]
[1731761293725,3.14646,3178.2,3177.7,0.55]
[1731761295940,0.47920772,3178.4,3177.7,0.55]
[1731761295941,3.14634,3178.3,3177.7,0.55]
[1731761296154,3.14645,3178.2,3177.7,0.55]
[1731761296537,0.47920772,3178.4,3177.7,0.55]
[1731761296741,3.14641,3178.3,3177.7,0.55]
[1731761297159,3.14643,3178.2,3177.7,0.55]
[1731761297334,3.14643,3178.2,3177.5,0.55]
[1731761297550,3.461073,3178.2,3177.5,0.55]
[1731761297757,3.461073,3178.2,3177.5,3.69712]
[1731761298333,3.461073,3178.2,3177.4,6.14721]
[1731761298334,3.14661,3178.1,3177.4,6.14721]
[1731761298640,0.314643,3178.2,3177.6,3.14696]
[1731761298839,3.14634,3178.3,3177.6,3.14696]
[1731761299251,3.14644,3178.2,3177.6,3.14696]
[1731761300611,3.14624,3178.4,3177.7,3.14688]
[1731761300795,3.14635,3178.3,3177.7,3.14688]
[1731761300996,3.775719,3178.2,3177.5,3.14711]
[1731761301209,3.775719,3178.2,3177.6,3.14695]
[1731761301774,0.629259,3178.2,3177.7,3.14691]
[1731761302115,3.14634,3178.3,3177.7,3.14691]
[1731761302611,3.14626,3178.4,3177.8,3.14682]
[1731761302831,0.464626,3178.3,3177.8,3.14682]
[1731761303001,4.6462,3178.5,3177.8,3.14682]
[1731761303380,1.5,3178.5,3177.8,3.14682]
[1731761303614,3.14625,3178.4,3177.8,3.14682]
[1731761303810,0.464625,3178.3,3177.8,3.14682]
[1731761304427,0.464625,3178.3,3177.6,3.14702]
[1731761304428,3.611025,3178.3,3177.6,3.14702]
[1731761306038,3.611025,3178.3,3177.4,3.1472]
[1731761306039,3.14645,3178.2,3177.4,3.1472]
[1731761306330,3.14645,3178.2,3177.2,3.1474]
[1731761306331,3.14682,3177.9,3177.2,3.1474]
[1731761306841,3.14656,3178.1,3177.2,3.1474]
[1731761306842,3.14683,3177.8,3177.2,3.1474]
[1731761307199,3.1463,3178.4,3177.8,3.14676]
[1731761307399,3.1463,3178.4,3177.8,3.461436]
[1731761307645,3.1463,3178.4,3177.9,0.55]
[1731761308440,3.14634,3178.3,3177.7,3.14692]
[1731761308639,1.5,3178.5,3177.7,3.14692]
[1731761308640,1.5,3178.5,3177.8,0.55]
[1731761308810,3.14625,3178.4,3177.8,0.55]
[1731761309018,0.464625,3178.3,3177.8,0.55]
[1731761310407,0.464625,3178.3,3177.6,3.697]
[1731761310408,3.14646,3178.2,3177.6,3.697]
[1731761310924,0.464625,3178.3,3177.7,3.14692]
[1731761311112,3.610965,3178.3,3177.8,0.55]
[1731761311455,0.3610965,3178.2,3177.8,0.55]
[1731761311743,0.3610965,3178.2,3177.7,0.55]
[1731761311963,0.3610965,3178.2,3177.7,3.14691]
[1731761312299,0.3610965,3178.2,3177.8,0.55]
[1731761312700,0.3610965,3178.2,3177.6,0.55]
[1731761313503,0.3610965,3178.2,3177.8,0.55]
[1731761315802,0.3610965,3178.2,3177.6,0.55]
[1731761316028,3.14644,3178.2,3177.6,0.55]
[1731761316230,3.14649,3178.2,3177.6,0.55]
[1731761316430,3.14649,3178.2,3177.7,0.235296]
[1731761316646,3.14649,3178.2,3177.6,3.69701]
[1731761316810,3.14649,3178.2,3177.7,0.23529596]
[1731761317003,3.14649,3178.2,3177.6,3.69701]
[1731761317237,3.14649,3178.2,3177.8,0.55]
[1731761317757,3.14649,3178.2,3177.7,0.55]
[1731761317929,3.14649,3178.2,3177.8,0.23555901]
[1731761318107,3.14649,3178.2,3177.7,0.55]
[1731761318309,3.14649,3178.2,3177.9,0.55]
[1731761318547,3.14649,3178.2,3177.8,0.23564196]
[1731761318548,3.14649,3178.2,3177.7,0.55]
[1731761318843,3.14649,3178.2,3177.9,0.55]
[1731761319152,3.14649,3178.2,3177.7,0.55]
[1731761319362,3.461139,3178.2,3177.7,0.55]
[1731761320150,3.461139,3178.2,3177.9,0.55]
[1731761320832,3.461139,3178.2,3177.7,0.55]
[1731761321051,3.461139,3178.2,3177.9,0.55]
[1731761321237,3.461139,3178.2,3177.7,0.55]
[1731761321432,3.461139,3178.2,3177.9,0.55]
[1731761321636,3.461139,3178.2,3177.7,0.55]
[1731761321938,3.461139,3178.2,3177.9,0.55]
[1731761322338,3.461139,3178.2,3177.7,0.55]
[1731761322535,3.1466,3178.1,3177.5,3.69711]
[1731761322740,3.1466,3178.1,3177.7,0.55]
[1731761322971,3.14663,3178.0,3177.7,0.55]
[1731761323141,3.14674,3177.9,3177.5,0.55]
[1731761323339,3.14674,3177.9,3177.3,3.14731]
[1731761323340,3.14685,3177.8,3177.2,3.14736]
[1731761323716,3.14685,3177.8,3177.3,0.23569401]
[1731761323922,3.14685,3177.8,3177.4,0.23569401]
[1731761324152,3.81081079,3177.8,3177.2,3.14736]